fUST/lending_fUST_20241017
["ID","MTS","AMOUNT","RATE_DAILY","PERIOD"]
[340364725,1729094620186,269.01314706,0.00027,60]
[340364799,1729095043731,-171.392028,0.00019447,2]
[340364800,1729095043741,-300.0,0.0001988,2]
[340364801,1729095043750,-300.0,0.0001988,2]
[340364802,1729095043759,-150.0,0.00019881,2]
[340364803,1729095043768,-289.2470916,0.00019881,2]
[340364842,1729095515527,274.0,0.0001,2]
[340364844,1729095565690,275.0,0.0001,2]
[340364845,1729095592301,2000.0,0.0001,2]
[340364853,1729095690596,2113.47552822,0.0001,2]
[340364857,1729095804699,18705.3259504,0.00027,60]
[340364894,1729096097434,185.53566865,0.000123,2]
[340364895,1729096110706,1239.10235904,0.000134,2]
[340364899,1729096171858,359.45779371,0.000138,2]
[340365034,1729096239804,-193.8033371,0.000196,2]
[340365035,1729096239817,-154.25226729,0.00019747,2]
[340365036,1729096239828,-154.25226728,0.00019813,2]
[340365037,1729096239838,-300.0,0.00019846,2]
[340365038,1729096239849,-300.0,0.00019846,2]
[340365039,1729096239859,-527.0,0.00019847,2]
[340365040,1729096239869,-1806.0,0.00019847,2]
[340365041,1729096239880,-1157.0,0.00019847,2]
[340365042,1729096239892,-154.25226728,0.00019878,2]
[340365043,1729096239901,-500.0,0.00019978,7]
[340365044,1729096239911,-500.0,0.00019978,7]
[340365045,1729096239920,-500.0,0.00019978,7]
[340365046,1729096239930,-291.99,0.00019978,7]
[340365047,1729096239939,-500.0,0.00019978,7]
[340365048,1729096239949,-500.0,0.00019978,7]
[340365049,1729096239959,-500.0,0.00019978,7]
[340365050,1729096239969,-500.0,0.00019978,7]
[340365051,1729096239979,-500.0,0.00019978,7]
[340365052,1729096239990,-500.0,0.00019978,7]
[340365053,1729096240001,-500.0,0.00019978,7]
[340365054,1729096240011,-500.0,0.00019978,7]
[340365055,1729096240021,-500.0,0.00019978,7]
[340365056,1729096240030,-500.0,0.00019978,7]
[340365057,1729096240042,-500.0,0.00019978,7]
[340365058,1729096240052,-500.0,0.00019978,7]
[340365059,1729096240062,-500.0,0.00019978,7]
[340365060,1729096240075,-500.0,0.00019978,7]
[340365061,1729096240087,-500.0,0.00019978,7]
[340365062,1729096240097,-500.0,0.00019978,7]
[340365063,1729096240107,-502.43,0.00019978,7]
[340365064,1729096240117,-500.0,0.00019978,7]
[340365065,1729096240126,-500.0,0.00019978,7]
[340365066,1729096240136,-457.11,0.00019978,7]
[340365067,1729096240146,-1000.0,0.0002,5]
[340365068,1729096240156,-2000.0,0.0002,2]
[340365069,1729096240166,-177.91632144,0.0002,2]
[340365070,1729096240175,-153.0,0.0002,2]
[340365071,1729096240185,-153.0,0.0002,2]
[340365072,1729096240195,-153.0,0.0002,2]
[340365073,1729096240205,-452.3520901,0.0002,2]
[340365074,1729096240215,-153.0,0.0002,2]
[340365075,1729096240225,-301.9500594,0.0002,2]
[340365076,1729096240235,-153.0,0.0002,2]
[340365077,1729096240246,-600.0,0.0002016,2]
[340365078,1729096240256,-8499.96604031,0.00020327,2]
[340365079,1729096240265,-164.12290888,0.00020327,2]
[340365080,1729096240276,-22469.96545307,0.00020327,2]
[340365081,1729096240285,-600.0,0.0002037,2]
[340365082,1729096240294,-414.3746803,0.00020427,2]
[340365083,1729096240305,-414.3746803,0.00020427,2]
[340365084,1729096240315,-420.4808066,0.00020427,2]
[340365085,1729096240326,-210.4166343,0.00020427,2]
[340365086,1729096240336,-210.4166343,0.00020427,2]
[340365087,1729096240348,-414.3746803,0.00020427,2]
[340365088,1729096240357,-414.3746803,0.00020427,2]
[340365089,1729096240367,-210.4166343,0.00020427,2]
[340365090,1729096240377,-414.3746803,0.00020427,2]
[340365091,1729096240388,-210.4166343,0.00020427,2]
[340365092,1729096240397,-414.3746803,0.00020427,2]
[340365093,1729096240407,-403.2569756,0.00020427,2]
[340365094,1729096240417,-414.3746803,0.00020427,2]
[340365095,1729096240427,-414.3746803,0.00020427,2]
[340365096,1729096240437,-414.3746803,0.00020427,2]
[340365097,1729096240447,-410.9119214,0.00020427,2]
[340365098,1729096240456,-232.8568762,0.0002058,2]
[340365099,1729096240467,-1154.24446238,0.0002058,2]
[340365100,1729096240477,-832.03448355,0.00020668,2]
[340365101,1729096240487,-465.10313907,0.00020669,2]
[340365102,1729096240496,-1000.0,0.0002068,2]
[340365103,1729096240506,-1017.0052975,0.00020705,2]
[340365104,1729096240515,-470.96,0.00020758,3]
[340365105,1729096240526,-235.48,0.00020758,3]
[340365106,1729096240536,-706.45,0.00020758,3]
[340365107,1729096240545,-12877.1640361,0.00020758,3]
[340365108,1729096240555,-508.52125406,0.00020767,2]
[340365109,1729096240565,-12877.1640361,0.00020768,3]
[340365110,1729096240578,-23860.3509562,0.00020768,3]
[340365111,1729096240587,-364.12362126,0.00020777,2]
[340365112,1729096240597,-565.98478897,0.00020777,2]
[340365113,1729096240607,-46121.05939757,0.00020778,2]
[340365114,1729096240617,-150.0,0.000208,3]
[340365115,1729096240627,-151.7801208,0.00020858,2]
[340365116,1729096240637,-1165.08504284,0.00020888,2]
[340365117,1729096240646,-500.0,0.000209,2]
[340365118,1729096240656,-151.028454,0.000209,2]
[340365119,1729096240665,-3200.0,0.00020921,2]
[340365120,1729096240674,-500.0,0.00020921,2]
[340365121,1729096240684,-150.0,0.00020921,2]
[340365122,1729096240693,-151.78012077,0.00020939,2]
[340365123,1729096240702,-12877.1640361,0.00020958,3]
[340365124,1729096240712,-23860.3509562,0.00020958,3]
[340365125,1729096240722,-25754.3280723,0.00020968,3]
[340365126,1729096240731,-23860.3509562,0.00020968,3]
[340365127,1729096240741,-23860.3509562,0.00020968,3]
[340365128,1729096240755,-500.0,0.00020973,2]
[340365129,1729096240764,-500.0,0.00020973,2]
[340365130,1729096240774,-228.74212158,0.00020977,2]
[340365131,1729096240783,-253.19903042,0.00020977,2]
[340365132,1729096240794,-288.4758907,0.00020977,2]
[340365133,1729096240804,-64385.8201808,0.00020978,3]
[340365134,1729096240813,-49883.2144189,0.00020978,3]
[340365143,1729096246179,-3.0,0.00020973,2]
[340365153,1729096803925,2155.3488937,0.0001,2]
[340365287,1729097446075,-300.0,0.00019859,2]
[340365288,1729097446089,-300.0,0.00019859,2]
[340365289,1729097446099,-4.97165708,0.0001986,2]
[340365368,1729098640311,-300.0,0.00019251,2]
[340365369,1729098640322,-300.0,0.00019251,2]
[340365370,1729098640332,-2565.85379937,0.00019252,2]
[340365371,1729098640350,-1684.12922078,0.00019252,2]
[340365372,1729098640361,-1598.56226719,0.00019252,2]
[340365381,1729098646535,-9599.66605713,0.00019252,2]
[340365513,1729099838817,-413.12150998,0.00019134,2]
[340365525,1729099840458,-1211.40349792,0.00019134,2]
[340365526,1729099840468,-447.37307711,0.00019587,2]
[340365530,1729099843640,-17.63207984,0.00019587,2]
[340365531,1729099843649,-300.0,0.00019684,2]
[340365532,1729099843663,-300.0,0.00019684,2]
[340365533,1729099843673,-527.0,0.00019685,2]
[340365534,1729099843682,-627.33724717,0.00019685,2]
[340365535,1729099843693,-448.04999976,0.00019685,2]
[340365536,1729099843704,-81.61275307,0.00019685,2]
[340365538,1729099843714,-1806.0,0.00019685,2]
[340365540,1729099843723,-150.0,0.000199,2]
[340365542,1729099843732,-3454.395401,0.00020125,2]
[340365543,1729099843742,-2083.583777,0.00020125,2]
[340365544,1729099843754,-206.111736,0.00020125,2]
[340365545,1729099843764,-2124.99151008,0.00020276,2]
[340365546,1729099843774,-1279.8171504,0.00020276,2]
[340365548,1729099846729,-12773.09985832,0.00020276,2]
[340365549,1729099846739,-4444.38739927,0.00020277,2]
[340365550,1729099846749,-154.030527,0.000203,2]
[340365551,1729099846758,-153.0,0.000203,2]
[340365552,1729099846768,-153.0,0.000203,2]
[340365553,1729099846777,-153.0,0.000203,2]
[340365554,1729099846787,-3454.395401,0.00020377,2]
[340365555,1729099846797,-2083.583777,0.00020377,2]
[340365556,1729099846807,-206.111736,0.00020377,2]
[340365557,1729099846816,-164.12290889,0.00020377,2]
[340365558,1729099846825,-318098.97902318,0.000205,2]
[340365559,1729099846837,-1720.59850773,0.000205,2]
[340365592,1729101032607,-300.0,0.000199,2]
[340365593,1729101032619,-300.0,0.000199,2]
[340365594,1729101032629,-295.028,0.00019901,2]
[340365595,1729101032640,-527.0,0.00019901,2]
[340365596,1729101032649,-1806.0,0.00019901,2]
[340365597,1729101032662,-1157.0,0.00019901,2]
[340365598,1729101032673,-243.336377,0.00020125,2]
[340365599,1729101032683,-600.0,0.0002016,2]
[340365600,1729101032692,-3888.83897437,0.00020174,2]
[340365601,1729101032702,-1093.91300254,0.00020175,2]
[340365602,1729101032712,-1093.91300254,0.0002018,2]
[340365603,1729101032721,-1093.91300254,0.00020184,2]
[340365604,1729101032734,-1093.91300254,0.00020189,2]
[340365605,1729101032746,-1093.91300254,0.00020193,2]
[340365606,1729101032756,-1000.0,0.00020194,2]
[340365607,1729101032766,-727.83,0.00020265,3]
[340365608,1729101032776,-363.91,0.00020265,3]
[340365609,1729101032786,-181.96,0.00020265,3]
[340365610,1729101032798,-545.89,0.00020265,3]
[340365611,1729101032808,-164.12290889,0.00020274,2]
[340365612,1729101032818,-26881.2329146,0.00020274,3]
[340365613,1729101032827,-17212.64396714,0.00020274,3]
[340365614,1729101032839,-807.98813339,0.00020274,3]
[340365615,1729101033186,-846.24591144,0.00020274,3]
[340365636,1729101038861,-552.34297938,0.00020274,3]
[340365655,1729101039030,-3327.52,0.00020274,3]
[340365657,1729101039041,-1138.33566,0.00020274,3]
[340365714,1729101040673,-1057.76790865,0.00020274,3]
[340365716,1729101040684,-2505.62637,0.00020275,2]
[340365718,1729101040693,-2162.35927327,0.00020275,2]
[340365721,1729101040724,-343.26709673,0.00020275,2]
[340365722,1729101040735,-151.0,0.00020275,2]
[340365724,1729101040744,-53762.4658292,0.00020275,3]
[340365726,1729101040755,-49885.68912,0.00020275,3]
[340365728,1729101040764,-177.2393213,0.00020283,2]
[340365730,1729101040774,-213.64093072,0.00020283,2]
[340365731,1729101040786,-265.24274319,0.00020283,2]
[340365732,1729101040796,-10539.68775654,0.00020284,2]
[340365733,1729101040806,-1062.49575504,0.00020284,2]
[340365734,1729101040817,-107524.931658,0.00020284,3]
[340365735,1729101040826,-99771.37824,0.00020284,3]
[340365736,1729101040837,-151.0,0.00020284,2]
[340365737,1729101040847,-2505.62637,0.00020284,2]
[340365738,1729101040856,-2505.62637,0.00020284,2]
[340365739,1729101040866,-2505.62637,0.00020284,2]
[340365740,1729101040875,-2505.62637,0.00020284,2]
[340365741,1729101040884,-2505.62637,0.00020284,2]
[340365742,1729101040893,-2505.62637,0.00020284,2]
[340365743,1729101040902,-2505.62637,0.00020284,2]
[340365744,1729101040912,-2505.62637,0.00020284,2]
[340365745,1729101040922,-249.861886,0.00020284,2]
[340365746,1729101040932,-15284.67,0.00020284,2]
[340365747,1729101040942,-15284.67,0.00020284,2]
[340365748,1729101040951,-15284.67,0.00020284,2]
[340365749,1729101040962,-748.68115785,0.00020284,2]
[340365894,1729102231868,-433.90707799,0.00019148,2]
[340365898,1729102231882,-1766.0311338,0.00019148,2]
[340365906,1729102231956,-291.0020642,0.00019148,2]
[340365908,1729102231968,-2446.66666791,0.00019148,2]
[340365910,1729102231978,-466.95990016,0.00019538,2]
[340365912,1729102231987,-300.0,0.000199,2]
[340365914,1729102231998,-300.0,0.000199,2]
[340365916,1729102232008,-24.88952763,0.00019901,2]
[340365938,1729102238068,-452.47211687,0.00019901,2]
[340365940,1729102238251,-49.6383555,0.00019901,2]
[340365941,1729102238261,-1157.0,0.00019901,2]
[340365942,1729102238270,-1806.0,0.00019901,2]
[340365943,1729102238280,-150.0,0.0002,2]
[340365944,1729102238289,-703.817005,0.00020125,2]
[340365945,1729102238298,-600.0,0.0002016,2]
[340365946,1729102238308,-3402.7341026,0.00020164,2]
[340365947,1729102238317,-978.70000001,0.00020174,2]
[340365948,1729102238326,-545.68,0.00020254,3]
[340365949,1729102238335,-272.84,0.00020254,3]
[340365950,1729102238344,-818.54,0.00020254,3]
[340365951,1729102238353,-29847.0800384,0.00020255,3]
[340365952,1729102238362,-26515.8102115,0.00020255,3]
[340365953,1729102238377,-500.0,0.00020261,2]
[340365954,1729102238386,-500.0,0.00020261,2]
[340365955,1729102238396,-500.0,0.00020261,2]
[340365956,1729102238405,-584.47679065,0.00020261,2]
[340365957,1729102238416,-500.0,0.00020261,2]
[340365958,1729102238425,-500.0,0.00020261,2]
[340365959,1729102238435,-500.0,0.00020261,2]
[340365960,1729102238444,-500.0,0.00020261,2]
[340365961,1729102238456,-500.0,0.00020261,2]
[340365962,1729102238467,-29847.0800384,0.00020261,3]
[340365963,1729102238476,-26515.8102115,0.00020261,3]
[340365964,1729102238485,-59694.1600769,0.00020262,3]
[340365965,1729102238495,-39219.01920509,0.00020262,3]
[340365973,1729102239977,-13812.60121791,0.00020262,3]
[340365974,1729102239987,-151.0,0.00020262,2]
[340365975,1729102239997,-59694.1600769,0.00020263,3]
[340365976,1729102240006,-53031.620423,0.00020263,3]
[340365977,1729102240015,-234.120788,0.00020263,2]
[340365978,1729102240025,-29847.0800384,0.00020264,3]
[340365979,1729102240035,-26515.8102115,0.00020264,3]
[340365980,1729102240044,-177.2393213,0.0002027,2]
[340365981,1729102240054,-265.24274319,0.0002027,2]
[340365982,1729102240063,-213.64093072,0.0002027,2]
[340365983,1729102240073,-10539.68775654,0.00020271,2]
[340365984,1729102240083,-1062.49575504,0.00020271,2]
[340365985,1729102240093,-151.0,0.00020271,2]
[340365986,1729102240102,-151.0,0.00020271,2]
[340365987,1729102240111,-151.0,0.00020271,2]
[340365988,1729102240121,-151.0,0.00020271,2]
[340365989,1729102240131,-313.483541,0.00020271,2]
[340365990,1729102240140,-313.483541,0.00020271,2]
[340365991,1729102240149,-313.483541,0.00020271,2]
[340365992,1729102240159,-313.483541,0.00020271,2]
[340365993,1729102240169,-389.681087,0.00020271,2]
[340365994,1729102240178,-389.681087,0.00020271,2]
[340365995,1729102240191,-389.681087,0.00020271,2]
[340365996,1729102240202,-389.681087,0.00020271,2]
[340365997,1729102240213,-297.064538,0.00020271,2]
[340365998,1729102240224,-151.0,0.00020271,2]
[340365999,1729102240236,-151.0,0.00020271,2]
[340366000,1729102240247,-2272.227087,0.00020271,2]
[340366001,1729102240258,-2272.227087,0.00020271,2]
[340366002,1729102240269,-2272.227087,0.00020271,2]
[340366003,1729102240279,-2272.227087,0.00020271,2]
[340366004,1729102240288,-151.0,0.00020271,2]
[340366005,1729102240297,-249.861886,0.00020271,2]
[340366006,1729102240306,-151.0,0.00020271,2]
[340366007,1729102240315,-151.0,0.00020271,2]
[340366008,1729102240325,-151.0,0.00020271,2]
[340366009,1729102240334,-151.0,0.00020271,2]
[340366010,1729102240344,-29847.0800384,0.00020271,3]
[340366011,1729102240354,-53031.620423,0.00020271,3]
[340366012,1729102240363,-151.0,0.00020272,2]
[340366013,1729102240373,-283.774771,0.00020272,2]
[340366014,1729102240383,-313.483541,0.00020272,2]
[340366015,1729102240392,-313.483541,0.00020272,2]
[340366016,1729102240401,-313.483541,0.00020272,2]
[340366017,1729102240411,-313.483541,0.00020272,2]
[340366018,1729102240421,-389.681087,0.00020272,2]
[340366019,1729102240430,-389.681087,0.00020272,2]
[340366020,1729102240440,-389.681087,0.00020272,2]
[340366021,1729102240451,-389.681087,0.00020272,2]
[340366022,1729102240460,-151.0,0.00020272,2]
[340366023,1729102240469,-151.0,0.00020272,2]
[340366024,1729102240479,-2272.227087,0.00020272,2]
[340366025,1729102240488,-2272.227087,0.00020272,2]
[340366026,1729102240498,-2272.227087,0.00020272,2]
[340366027,1729102240507,-2272.227087,0.00020272,2]
[340366028,1729102240518,-210.59661716,0.00020272,2]
[340366029,1729102240526,-151.0,0.00020272,2]
[340366030,1729102240535,-151.0,0.00020272,2]
[340366031,1729102240544,-313.483541,0.00020273,2]
[340366032,1729102240554,-313.483541,0.00020273,2]
[340366033,1729102240563,-313.483541,0.00020273,2]
[340366034,1729102240573,-313.483541,0.00020273,2]
[340366035,1729102240583,-389.681087,0.00020273,2]
[340366036,1729102240592,-389.681087,0.00020273,2]
[340366037,1729102240602,-389.681087,0.00020273,2]
[340366038,1729102240611,-389.681087,0.00020273,2]
[340366039,1729102240620,-15284.67,0.00020273,2]
[340366040,1729102240629,-15284.67,0.00020273,2]
[340366041,1729102240639,-15284.67,0.00020273,2]
[340366042,1729102240647,-15284.67,0.00020273,2]
[340366043,1729102240656,-15284.67,0.00020273,2]
[340366044,1729102240665,-151.0,0.00020273,2]
[340366045,1729102240674,-151.0,0.00020273,2]
[340366046,1729102240684,-2272.227087,0.00020273,2]
[340366047,1729102240693,-2272.227087,0.00020273,2]
[340366048,1729102240703,-979.30851251,0.00020273,2]
[340366071,1729102305400,419.0,0.00027,60]
[340366121,1729103314941,6864.08921192,0.00021,60]
[340366171,1729103438135,-300.0,0.00018787,2]
[340366172,1729103438144,-1.63803436,0.00018787,2]
[340366179,1729103439876,-298.36196564,0.00018787,2]
[340366180,1729103439886,-4715.47206117,0.00018788,2]
[340366181,1729103439896,-1000.5,0.00018788,2]
[340366182,1729103439905,-246.18436333,0.00019949,2]
[340366183,1729103439915,-29195.56221671,0.00019949,2]
[340366184,1729103439925,-272.84,0.00019982,3]
[340366185,1729103439935,-818.52,0.00019982,3]
[340366186,1729103439945,-23877.6640307,0.00019982,3]
[340366187,1729103439956,-616.02970021,0.00019982,3]
[340366188,1729103439966,-1000.0,0.00019982,2]
[340366189,1729103439976,-88888.0,0.00019992,2]
[340366190,1729103439987,-1000.0,0.0002,4]
[340366191,1729103439999,-6000.0,0.0002,2]
[340366192,1729103440010,-210.4166343,0.0002,2]
[340366193,1729103440020,-509.38631007,0.00020069,2]
[340366194,1729103440029,-47755.3280615,0.0002007,3]
[340366195,1729103440039,-1232.05940042,0.0002007,3]
[340366196,1729103440049,-47755.3280615,0.00020071,3]
[340366197,1729103440058,-1232.05940042,0.00020071,3]
[340366198,1729103440068,-47755.3280615,0.00020071,3]
[340366199,1729103440077,-1232.05940042,0.00020071,3]
[340366200,1729103440086,-23877.6640307,0.00020072,3]
[340366201,1729103440096,-616.02970021,0.00020072,3]
[340366202,1729103440107,-47755.3280615,0.00020072,3]
[340366203,1729103440116,-1232.05940042,0.00020072,3]
[340366204,1729103440126,-177.2393213,0.00020079,2]
[340366205,1729103440136,-213.64093072,0.00020079,2]
[340366206,1729103440145,-265.24274319,0.00020079,2]
[340366207,1729103440155,-14010.94,0.0002008,2]
[340366208,1729103440166,-14010.94,0.0002008,2]
[340366209,1729103440175,-10716.48176062,0.0002008,2]
[340366283,1729104632184,-466.15783672,0.00019489,2]
[340366284,1729104632194,-1000.0,0.00019791,2]
[340366285,1729104632203,-272.84,0.00019859,3]
[340366286,1729104632213,-818.52,0.00019859,3]
[340366287,1729104632223,-246.18436333,0.0001986,2]
[340366288,1729104632232,-35212.3779422,0.0001986,3]
[340366289,1729104632242,-500.0,0.00019868,2]
[340366290,1729104632251,-498.35273258,0.00019868,2]
[340366291,1729104632261,-500.0,0.00019868,2]
[340366292,1729104632270,-500.0,0.00019868,2]
[340366293,1729104632280,-500.0,0.00019868,2]
[340366294,1729104632289,-500.0,0.00019868,2]
[340366295,1729104632299,-499.99999999,0.00019868,2]
[340366296,1729104632308,-3923.66432573,0.00019869,3]
[340366320,1729104640305,-26227.83637167,0.00019869,3]
[340366321,1729104640316,-70424.7558844,0.00019869,3]
[340366322,1729104640326,-29195.56221671,0.00019869,2]
[340366323,1729104640338,-60303.0013949,0.0001987,3]
[340366324,1729104640349,-70424.7558844,0.0001987,3]
[340366325,1729104640358,-35212.3779422,0.0001987,3]
[340366326,1729104640368,-585.79150865,0.00019873,2]
[340366327,1729104640378,-500.0,0.00019873,2]
[340366328,1729104640389,-500.0,0.00019873,2]
[340366329,1729104640398,-500.0,0.00019873,2]
[340366330,1729104640408,-598.28926952,0.00019873,2]
[340366331,1729104640418,-500.0,0.00019873,2]
[340366332,1729104640427,-10539.68775654,0.00019879,2]
[340366333,1729104640437,-1062.49575504,0.00019879,2]
[340366334,1729104640447,-177.2393213,0.00019879,2]
[340366335,1729104640458,-259.55123845,0.00019879,2]
[340366336,1729104640468,-375.81060741,0.00019879,2]
[340366337,1729104640478,-151.0,0.00019879,2]
[340366338,1729104640488,-15284.67,0.00019879,2]
[340366339,1729104640498,-15284.67,0.00019879,2]
[340366340,1729104640509,-15284.67,0.00019879,2]
[340366341,1729104640519,-15284.67,0.00019879,2]
[340366342,1729104640530,-15284.67,0.00019879,2]
[340366343,1729104640541,-15284.67,0.00019879,2]
[340366344,1729104640551,-15284.67,0.00019879,2]
[340366345,1729104640561,-15284.67,0.00019879,2]
[340366346,1729104640571,-88888.0,0.0001988,2]
[340366347,1729104640587,-234.120788,0.0001988,2]
[340366348,1729104640597,-30151.5006974,0.0001988,3]
[340366349,1729104640608,-15284.67,0.0001989,2]
[340366350,1729104640618,-23558.17575027,0.00019891,2]
[340366351,1729104640628,-1000.0,0.000199,2]
[340366352,1729104640637,-1000.0,0.000199,2]
[340366353,1729104640647,-500.0,0.000199,2]
[340366354,1729104640657,-35212.3779422,0.00019931,3]
[340366355,1729104640667,-150.0,0.00019938,2]
[340366356,1729104640677,-1500.0,0.0001994,2]
[340366357,1729104640686,-1370.29469908,0.0001994,2]
[340366358,1729104640697,-35212.3779422,0.0001994,3]
[340366359,1729104640708,-30151.5006974,0.0001994,3]
[340366360,1729104640719,-15284.67,0.00019949,2]
[340366361,1729104640731,-15284.67,0.00019949,2]
[340366362,1729104640741,-15284.67,0.00019949,2]
[340366363,1729104640751,-30151.5006974,0.0001995,3]
[340366364,1729104640762,-151.0,0.0001995,2]
[340366365,1729104640775,-261.0,0.0001995,2]
[340366366,1729104640784,-313.483541,0.0001995,2]
[340366367,1729104640794,-313.483541,0.0001995,2]
[340366368,1729104640804,-151.0,0.0001995,2]
[340366369,1729104640816,-151.0,0.0001995,2]
[340366370,1729104640831,-15284.67,0.0001995,2]
[340366371,1729104640842,-15284.67,0.0001995,2]
[340366372,1729104640851,-30151.5006974,0.0001995,3]
[340366373,1729104640864,-30151.5006974,0.00019959,3]
[340366374,1729104640874,-151.0,0.0001996,2]
[340366375,1729104640885,-151.0,0.0001996,2]
[340366376,1729104640895,-389.681087,0.0001996,2]
[340366377,1729104640905,-389.681087,0.0001996,2]
[340366378,1729104640915,-407.787956,0.0001996,2]
[340366379,1729104640924,-78.93416876,0.0001996,2]
[340366399,1729104647948,-189.264068,0.00019879,2]
[340366400,1729104647959,-297.064538,0.00019879,2]
[340366401,1729104647970,-189.264068,0.0001988,2]
[340366402,1729104647980,-189.264068,0.0001993,2]
[340366403,1729104647990,-189.264068,0.0001995,2]
[340366404,1729104647999,-328.85378724,0.0001996,2]
[340366405,1729104648008,-249.861886,0.0001996,2]
[340366406,1729104648017,-313.483541,0.0001996,2]
[340366407,1729104648026,-313.483541,0.0001996,2]
[340366408,1729104648036,-313.483541,0.0001996,2]
[340366409,1729104648047,-30.46639386,0.0001996,2]
[340366422,1729104805908,606.9,0.00027,60]
[340366595,1729105840498,-319.87755236,0.0001957,2]
[340366596,1729105840508,-319.87755234,0.00019573,2]
[340366597,1729105840517,-319.87755234,0.00019575,2]
[340366598,1729105840527,-1000.0,0.00019659,2]
[340366599,1729105840536,-300.0,0.00019668,2]
[340366600,1729105840546,-500.0,0.00019668,2]
[340366601,1729105840555,-500.0,0.00019668,2]
[340366602,1729105840565,-500.0,0.00019668,2]
[340366603,1729105840574,-500.0,0.00019668,2]
[340366604,1729105840583,-212.31382398,0.00019668,2]
[340366605,1729105840592,-500.0,0.00019668,2]
[340366606,1729105840602,-500.0,0.00019668,2]
[340366607,1729105840611,-500.0,0.00019668,2]
[340366608,1729105840620,-500.0,0.00019668,2]
[340366609,1729105840630,-500.0,0.00019668,2]
[340366610,1729105840640,-500.0,0.00019668,2]
[340366611,1729105840649,-500.0,0.00019668,2]
[340366612,1729105840659,-500.0,0.00019668,2]
[340366613,1729105840669,-500.0,0.00019668,2]
[340366614,1729105840678,-500.0,0.00019668,2]
[340366615,1729105840689,-500.0,0.00019668,2]
[340366616,1729105840700,-500.0,0.00019668,2]
[340366617,1729105840710,-500.0,0.00019668,2]
[340366618,1729105840720,-500.0,0.00019668,2]
[340366619,1729105840731,-500.0,0.00019668,2]
[340366620,1729105840740,-500.0,0.00019668,2]
[340366621,1729105840750,-500.0,0.00019668,2]
[340366622,1729105840760,-500.0,0.00019668,2]
[340366623,1729105840770,-349.78285573,0.00019669,2]
[340366624,1729105840782,-318529.881106,0.00019669,3]
[340366625,1729105840792,-88888.0,0.0001967,2]
[340366626,1729105840802,-337.96622891,0.00019678,2]
[340366627,1729105840813,-500.0,0.00019678,2]
[340366628,1729105840822,-241.07862823,0.00019678,2]
[340366629,1729105840832,-182.79171164,0.00019678,2]
[340366630,1729105840841,-513.81,0.00019679,3]
[340366631,1729105840851,-256.91,0.00019679,3]
[340366632,1729105840861,-770.75,0.00019679,3]
[340366633,1729105840872,-217705.179065,0.00019679,3]
[340366634,1729105840881,-151.0,0.0001968,2]
[340366635,1729105840892,-151.0,0.0001968,2]
[340366636,1729105840902,-151.0,0.0001968,2]
[340366637,1729105840912,-151.0,0.0001968,2]
[340366638,1729105840923,-151.0,0.0001968,2]
[340366639,1729105840933,-108852.589532,0.0001968,3]
[340366640,1729105840943,-17181.47,0.00019688,2]
[340366641,1729105840953,-17181.47,0.00019688,2]
[340366642,1729105840963,-17181.47,0.00019688,2]
[340366643,1729105840973,-17181.47,0.00019688,2]
[340366644,1729105840984,-17181.47,0.00019688,2]
[340366645,1729105840994,-26552.40153217,0.00019689,2]
[340366705,1729106798607,830.07199644,0.00027,60]
[340366731,1729106998960,-800.74902541,0.000212,30]
[340366732,1729106999018,-14701.94812712,0.00022,30]
[340366733,1729106999079,-1000.5,0.00025,31]
[340366734,1729106999131,-1000.5,0.00025,31]
[340366735,1729106999185,-1000.5,0.00025,31]
[340366736,1729106999238,-1000.5,0.00025,31]